Workbook

Sheet Sheet2
B4: امتیاز ویژه اضافه در نظر گرفته شده | G4: نام مرکز
G5: شهرستان اسلامشهر
G6: سعیدیه
G7: احمد آباد
G8: باغ فیض
G9: انبیا
G10: چهاردانگه
G11: قائمیه
G12: قاسم آباد
G13: واوان
G14: گلشهر
G15: گلدسته
G16: شاطره
G17: مهر ضیاء آباد
G18: موسی آباد
G19: گلها
G20: حسن آباد
G21: حسین آباد
G22: بهرام آباد
G23: مهرواوان
G24: شهرک امام حسین
G25: فرمانفرمایان
G26: بدر
G27: اکبرآباد

Sheet data
A1: چک لیست نظارتی عملکرد کارشناس تغذیه - فقط قسمت سفید رنگ بر اساس کلیه مراکز و پایگاه ها تکمیل شود.
A2: ابتدا روی لینک مراکز کلیک کنید و نام مراکز را وارد کنید | B2: فعالیت | C2: حدانتظار | D2: امتیاز خدمت (به ازای هر واحد از آن خدمت) | E2: تعداد خدمت کارشناس تغذیه | F2: نمره | G2: درصد رسیدن به حدانتظار خدمت | H2: مدرک مورد نیاز برای ارزیابی
A3: مراکز | F3: =E3 -> 0 | G3: =E3 -> 0
A4: سوال های عملکردی | B4: ثبت ارزیابی (مراقبت)در سامانه سیب در سه ماهه اخیر | C4: =96*3 -> 288 | D4: 5 | E4: 317 | F4: =IF(E4>=C4,D4,E4/C4*D4) -> 5 | G4: =F4/D4 -> 1
B5: ثبت آموزش فردی(اقدام) در سامانه سیب در سه ماهه اخیر | C5: =144*3 -> 432 | D5: 6 | E5: 706 | F5: =IF(E5>=C5,D5,E5/C5*D5) -> 6 | G5: =F5/D5 -> 1
B6: ثبت برنامه غذایی در سامانه سیب در سه ماهه اخیر | C6: =20*3 -> 60 | D6: 10 | E6: 70 | F6: 10 | G6: 1
B7: جلسه آموزش برون بخشی/گروهی در سه ماهه اخیر | C7: =4*3 -> 12 | D7: 4 | E7: 12 | F7: 4 | G7: 1
B8: جلسه آموزش درون بخشی درگروه در سه ماهه اخیر | C8: =4*3 -> 12 | D8: 4 | E8: 12 | F8: 4 | G8: 1
B9: آیا برنامه عملیاتی (برنامه مداخله ای) سالیانه و جدول گانت مطابق با مشکلات شایع منطقه در ابتدای سال طراحی شده و در حال اجرا می باشد؟ | C9: 1 | D9: 5 | E9: 1 | F9: 5 | G9: 1 | H9: تهيه برنامه عملياتي مطابق با اهداف ابلاغی
B10: آیا فعالیت های پیش بینی شده برنامه عملیاتی طبق جدول زمان بندی انجام گرفته است؟ | C10: 1 | D10: 2 | E10: 1 | F10: 2 | G10: 1 | H10: مشاهده مستندات
B11: آیا اطلاعات جمعیتی سالانه (گروه سنی و مراکز جمعی و مدارس) و شاخص های مربوط به مشکلات تغذیه منطقه را استخراج و نموده است؟ | C11: 2 | D11: 3 | E11: 2 | F11: 3 | G11: 1 | H11: ابتدای سال اطلاعات جمعیتی (گروههای سنی و مراکز جمعی) منطقه و شاخص مربوط به تن سنجی ، الگوی مصرف نامناسب مشاوره بیماریهای غیر واگیر هر شش ماه
B12: حضور درجلسه با کارشناس مسئول شهرستان هر سه ماه | C12: 1 | D12: 2 | E12: 2 | F12: 2 | G12: 1 | H12: گواهی شرکت در جلسه
B13: بازدید مراقبین سلامت/ بهورز هر سه ماه | C13: 1 | D13: 2 | E13: 2 | F13: 2 | G13: 1 | H13: مستندات بازدید
B14: آگاهی سنجی کارشناس تغذیه از طریق آزمون (هر شش ماه یکبار) | C14: 1 | D14: 2 | E14: 2 | F14: 2 | G14: 1 | H14: (ازمون از بسته خدمت یا دستورالعمل ها)
B15: حضور در دوره ها و کارگاه های آموزشی در یک سال اخیر | C15: 1 | D15: 2 | E15: 2 | F15: 2 | G15: 1 | H15: گواهی شرکت
B16: تولید محتوای آموزشی برای آموزش جامعه در یک سال اخیر | C16: 1 | D16: 1 | E16: 1 | F16: 1 | G16: 1 | H16: بروشور/پمفلت/مطلب تهیه شده
B17: ارسال به موقع آمار | C17: 1 | D17: 2 | E17: 1 | F17: 2 | G17: 1 | H17: ارسال به موقع هر گونه آمار و اطلاعات درخواستی از مافوق
B18: بازدید از مدارس (مکمل یاری) در یک سال تحصیلی اخیر | C18: 1 | D18: 4 | E18: 1 | F18: 4 | G18: 1 | H18: مستندات بازدید
A19: ابزار و ملزومات ارائه خدمات تغذیه ای در اتاق کارشناس تغذیه موجود است | B19: وجود و سالم بودن ترازوی کفه ای اطفال – ترازوی بزرگسال – قدسنج اطفال و بزرگسال وزنه شاهد 0.5 و 2 و 5 کیلوگرمی – کامپیوتر ، متر نواری و ماشین حساب | C19: 10 | D19: 1 | E19: 10 | F19: 1 | G19: 1 | H19: به ازای هر وسیله سالم 1 امتیاز تعلق می گیرد
B20: کالیبر بودن ترازوها و استاندارد بودن قدسنج ها | C20: 1 | D20: 1 | E20: 1 | F20: 1 | G20: 1
B21: موجود بودن فایل آمارهای جمعیتی و شیوع بیماریها | C21: 1 | D21: 1 | E21: 1 | F21: 1 | G21: 1
B22: بسته های آموزشی و خدمت تغذیه | C22: 1 | D22: 1 | E22: 1 | F22: 1 | G22: 1
B23: دستورالعمل های ابلاغی دفتر بهبود تغذیه جامعه | C23: 1 | D23: 1 | E23: 1 | F23: 1 | G23: 1
B24: پیگیری افراد ارجاع شده در سامانه سیب و ثبت آنها در قسمت" ثبت تماس" انجام شده است | C24: 5 | D24: 5 | E24: 5 | F24: 5 | G24: 1 | H24: (آیتم پیام ها در سامانه)
B25: پیگیری و پایش تلفنی و مشاوره تغذیه برای کودکان کمتر از 5 سال حمایتی را انجام می دهد | C25: 5 | D25: 5 | E25: 5 | F25: 5 | G25: 1
A26: در سامانه سیب مراقبت یک کودک طبق بسته خدمتی چک شود | B26: اقدام | C26: 4 | D26: 2 | E26: 4 | F26: 2 | G26: 1
B27: ثبت برنامه غذایی | C27: 2 | D27: 2 | E27: 2 | F27: 2 | G27: 1
A28: در سامانه سیب مراقبت یکی از گروه های سنی جوان/میانسال/ سالمند طبق بسته خدمتی چک شود | B28: اقدام | C28: 2 | D28: 2 | E28: 2 | F28: 2 | G28: 1
B29: ثبت برنامه غذایی | C29: 2 | D29: 2 | E29: 2 | F29: 2 | G29: 1
B30: بررسی فرم مراقبت تغذیه | C30: 2 | D30: 2 | E30: 2 | F30: 2 | G30: 1
A31: در سامانه سیب مراقبت یک مادر باردار طبق بسته خدمتی چک شود | B31: اقدام | C31: 2 | D31: 2 | E31: 2 | F31: 2 | G31: 1
B32: ثبت برنامه غذایی | C32: 2 | D32: 2 | E32: 2 | F32: 2 | G32: 1
B33: بررسی فرم مراقبت تغذیه | C33: 2 | D33: 2 | E33: 2 | F33: 2 | G33: 1
A34: مشاهده نحوه مشاوره و مراقبت یکی از گروه های سنی مطابق پروتکل های ابلاغی | B34: آموزش پروتکل های مکمل یاری | C34: 2 | D34: 2 | E34: 2 | F34: 2 | G34: 1 | H34: در صورت نبود مراجعه کننده از کارشناس تغذیه سوال شود.
B35: آموزش نمک یددار | C35: 2 | D35: 2 | E35: 2 | F35: 2 | G35: 1 | H35: در صورت نبود مراجعه کننده از کارشناس تغذیه سوال شود.
B36: آموزش اصول تغذیه صحیح بر اساس گروه سنی فرد مراجعه کننده | C36: 2 | D36: 2 | E36: 2 | F36: 2 | G36: 1 | H36: در صورت نبود مراجعه کننده از کارشناس تغذیه سوال شود.
B37: آگاهی ازوضعیت شیوع بیماری های غیرواگیر در گروه های سنی در منطقه تحت پوشش. | C37: 12 | D37: 12 | E37: 12 | F37: 12 | G37: 1 | H37: موجود بودن فرم شیوع بیماریهای غیر واگیر
B38: نظارت بر 100 درصد پایگاه های تغذیه سالم انجام شده است | C38: 5 | D38: 5 | E38: 5 | F38: 5 | G38: 1 | H38: هر فصل از 50 درصد مدارس دارای پایگاه تغذیه سالم بازدید به عمل آید ( به همراه کارشناس بهداشت محیط)
A39: (امتیازهای ویژه) | B39: همکاری در پژوهش مورد نیاز دفتر و معاونت بهداشتی | C39: 1 | D39: 1 | E39: 1 | F39: =IF(E39>=C39,D39,E39/C39*D39) -> 1 | G39: =F39/D39 -> 1 | H39: نامه کتبی از مجری/معاونت
B40: ابتکار در ارائه خدمات تغذیه ای در سطح منطقه - ارائه ایده های نو به معاونت/دفتر در مورد خدمات/شاخص ها و برنامه ها | C40: 1 | D40: 1 | F40: =IF(E40>=C40,D40,E40/C40*D40) -> 0 | G40: =F40/D40 -> 0 | H40: مستندات مربوطه (نامه/تاییدیه)
B41: انتقال انتقاد ها، مشکلات، پیشنهادات و راهکارها به کارشناس ستاد شهرستان ارائه دهنده خدمت در سال اخیر | C41: 1 | D41: 1 | F41: =IF(E41>=C41,D41,E41/C41*D41) -> 0 | G41: =F41/D41 -> 0 | H41: مستندات مربوطه (نامه/تاییدیه)
A42: جمع | C42: =SUM(C4:C41) -> 883 | D42: =SUM(D4:D41) -> 111 | E42: =SUM(E4:E41) -> 1198 | F42: =SUM(F4:F41) -> 109 | G42: =IF(F42>=108,1,F42/108) -> 1

Sheet emtiaz
A3: فعالیت | C3: طیف امتیاز | D3: جمع | E3: درصد | F3: فرمانفرمایان | G3: بدر
A4: سوال های عملکردی | B4: ثبت ارزیابی (مراقبت)در سامانه سیب در سه ماهه اخیر | C4: 5 | D4: =SUM(F4:BC4) -> 9.392361111 | E4: =D4/C4/COUNT(F4:BC4) -> 0.9392361111 | F4: 5 | G4: 4.392361111
B5: ثبت آموزش فردی(اقدام) در سامانه سیب در سه ماهه اخیر | C5: 6 | D5: =SUM(F5:BC5) -> 12 | E5: =D5/C5/COUNT(F5:BC5) -> 1 | F5: 6 | G5: 6
B6: ثبت برنامه غذایی در سامانه سیب در سه ماهه اخیر | C6: 10 | D6: 20 | E6: 1 | F6: 10 | G6: 10
B7: جلسه آموزش برون بخشی/گروهی در سه ماهه اخیر | C7: 4 | D7: 5.666666667 | E7: 0.7083333333 | F7: 4 | G7: 1.666666667
B8: جلسه آموزش درون بخشی درگروه در سه ماهه اخیر | C8: 4 | D8: 8 | E8: 1 | F8: 4 | G8: 4
B9: آیا برنامه عملیاتی (برنامه مداخله ای) سالیانه و جدول گانت مطابق با مشکلات شایع منطقه در ابتدای سال طراحی شده و در حال اجرا می باشد؟ | C9: 5 | D9: 10 | E9: 1 | F9: 5 | G9: 5
B10: آیا فعالیت های پیش بینی شده برنامه عملیاتی طبق جدول زمان بندی انجام گرفته است؟ | C10: 2 | D10: 4 | E10: 1 | F10: 2 | G10: 2
B11: آیا اطلاعات جمعیتی سالانه (گروه سنی و مراکز جمعی و مدارس) و شاخص های مربوط به مشکلات تغذیه منطقه را استخراج و نموده است؟ | C11: 3 | D11: 6 | E11: 1 | F11: 3 | G11: 3
B12: حضور درجلسه با کارشناس مسئول شهرستان هر سه ماه | C12: 2 | D12: 4 | E12: 1 | F12: 2 | G12: 2
B13: بازدید مراقبین سلامت/ بهورز هر سه ماه | C13: 2 | D13: 4 | E13: 1 | F13: 2 | G13: 2
B14: آگاهی سنجی کارشناس تغذیه از طریق آزمون (هر شش ماه یکبار) | C14: 2 | D14: 4 | E14: 1 | F14: 2 | G14: 2
B15: حضور در دوره ها و کارگاه های آموزشی در یک سال اخیر | C15: 2 | D15: 4 | E15: 1 | F15: 2 | G15: 2
B16: تولید محتوای آموزشی برای آموزش جامعه در یک سال اخیر | C16: 1 | D16: 1 | E16: 0.5 | F16: 1 | G16: 0
B17: ارسال به موقع آمار | C17: 2 | D17: 4 | E17: 1 | F17: 2 | G17: 2
B18: بازدید از مدارس (مکمل یاری) در یک سال تحصیلی اخیر | C18: 4 | D18: 8 | E18: 1 | F18: 4 | G18: 4
A19: ابزار و ملزومات ارائه خدمات تغذیه ای در اتاق کارشناس تغذیه موجود است | B19: وجود و سالم بودن ترازوی کفه ای اطفال – ترازوی بزرگسال – قدسنج اطفال و بزرگسال وزنه شاهد 0.5 و 2 و 5 کیلوگرمی – کامپیوتر ، متر نواری و ماشین حساب | C19: 1 | D19: 2 | E19: 1 | F19: 1 | G19: 1
B20: کالیبر بودن ترازوها و استاندارد بودن قدسنج ها | C20: 1 | D20: 2 | E20: 1 | F20: 1 | G20: 1
B21: موجود بودن فایل آمارهای جمعیتی و شیوع بیماریها | C21: 1 | D21: 2 | E21: 1 | F21: 1 | G21: 1
B22: بسته های آموزشی و خدمت تغذیه | C22: 1 | D22: 2 | E22: 1 | F22: 1 | G22: 1
B23: دستورالعمل های ابلاغی دفتر بهبود تغذیه جامعه | C23: 1 | D23: 2 | E23: 1 | F23: 1 | G23: 1
B24: پیگیری افراد ارجاع شده در سامانه سیب و ثبت آنها در قسمت" ثبت تماس" انجام شده است | C24: 5 | D24: 10 | E24: 1 | F24: 5 | G24: 5
B25: پیگیری و پایش تلفنی و مشاوره تغذیه برای کودکان کمتر از 5 سال حمایتی را انجام می دهد | C25: 5 | D25: 10 | E25: 1 | F25: 5 | G25: 5
A26: در سامانه سیب مراقبت یک کودک طبق بسته خدمتی چک شود | B26: اقدام | C26: 2 | D26: 4 | E26: 1 | F26: 2 | G26: 2
B27: ثبت برنامه غذایی | C27: 2 | D27: 4 | E27: 1 | F27: 2 | G27: 2
A28: در سامانه سیب مراقبت یکی از گروه های سنی جوان/میانسال/ سالمند طبق بسته خدمتی چک شود | B28: اقدام | C28: 2 | D28: 4 | E28: 1 | F28: 2 | G28: 2
B29: ثبت برنامه غذایی | C29: 2 | D29: 4 | E29: 1 | F29: 2 | G29: 2
B30: بررسی فرم مراقبت تغذیه | C30: 2 | D30: 4 | E30: 1 | F30: 2 | G30: 2
A31: در سامانه سیب مراقبت یک مادر باردار طبق بسته خدمتی چک شود | B31: اقدام | C31: 2 | D31: 4 | E31: 1 | F31: 2 | G31: 2
B32: ثبت برنامه غذایی | C32: 2 | D32: 4 | E32: 1 | F32: 2 | G32: 2
B33: بررسی فرم مراقبت تغذیه | C33: 2 | D33: 4 | E33: 1 | F33: 2 | G33: 2
A34: مشاهده نحوه مشاوره و مراقبت یکی از گروه های سنی مطابق پروتکل های ابلاغی | B34: آموزش پروتکل های مکمل یاری | C34: 2 | D34: 4 | E34: 1 | F34: 2 | G34: 2
B35: آموزش نمک یددار | C35: 2 | D35: 4 | E35: 1 | F35: 2 | G35: 2
B36: آموزش اصول تغذیه صحیح بر اساس گروه سنی فرد مراجعه کننده | C36: 2 | D36: 4 | E36: 1 | F36: 2 | G36: 2
B37: آگاهی ازوضعیت شیوع بیماری های غیرواگیر در گروه های سنی در منطقه تحت پوشش. | C37: 12 | D37: 24 | E37: 1 | F37: 12 | G37: 12
B38: نظارت بر 100 درصد پایگاه های تغذیه سالم انجام شده است | C38: 5 | D38: 10 | E38: 1 | F38: 5 | G38: 5
A39: (امتیازهای ویژه) | B39: همکاری در پژوهش مورد نیاز دفتر و معاونت بهداشتی | C39: 1 | D39: 0 | E39: 0 | F39: 0 | G39: 0
B40: ابتکار در ارائه خدمات تغذیه ای در سطح منطقه - ارائه ایده های نو به معاونت/دفتر در مورد خدمات/شاخص ها و برنامه ها | C40: 1 | D40: 0 | E40: 0 | F40: 0 | G40: 0
B41: انتقال انتقاد ها، مشکلات، پیشنهادات و راهکارها به کارشناس ستاد شهرستان ارائه دهنده خدمت در سال اخیر | C41: 1 | D41: 0 | E41: 0 | F41: 0 | G41: 0
A42: جمع | C42: =SUM(C4:C41) -> 111 | D42: =SUM(D4:D41) -> 212.0590278 | E42: =IF(D42/(110*COUNT(F42:BC42))>=1,1,D42/110/COUNT(F42:BC42)) -> 0.9639046717 | F42: 108 | G42: 104.0590278

Sheet data markaz
A3: فعالیت | C3: حد انتظار خدمت | D3: =Sheet2!G5 -> شهرستان اسلامشهر | E3: درصد | F3: فرمانفرمایان | G3: بدر
A4: سوال های عملکردی | B4: ثبت ارزیابی (مراقبت)در سامانه سیب در سه ماهه اخیر | C4: 288 | D4: =SUM(F4:AI4) -> 541 | E4: =D4/C4/COUNT(F4:AI4) -> 0.9392361111 | F4: 288 | G4: 253
B5: ثبت آموزش فردی(اقدام) در سامانه سیب در سه ماهه اخیر | C5: 432 | D5: =SUM(F5:AI5) -> 1100 | E5: 1.273148148 | F5: 432 | G5: 668
B6: ثبت برنامه غذایی در سامانه سیب در سه ماهه اخیر | C6: 60 | D6: 120 | E6: 1 | F6: 60 | G6: 60
B7: جلسه آموزش برون بخشی/گروهی در سه ماهه اخیر | C7: 12 | D7: 17 | E7: 0.7083333333 | F7: 12 | G7: 5
B8: جلسه آموزش درون بخشی درگروه در سه ماهه اخیر | C8: 12 | D8: 24 | E8: 1 | F8: 12 | G8: 12
B9: آیا برنامه عملیاتی (برنامه مداخله ای) سالیانه و جدول گانت مطابق با مشکلات شایع منطقه در ابتدای سال طراحی شده و در حال اجرا می باشد؟ | C9: 1 | D9: 2 | E9: 1 | F9: 1 | G9: 1
B10: آیا فعالیت های پیش بینی شده برنامه عملیاتی طبق جدول زمان بندی انجام گرفته است؟ | C10: 1 | D10: 2 | E10: 1 | F10: 1 | G10: 1
B11: آیا اطلاعات جمعیتی سالانه (گروه سنی و مراکز جمعی و مدارس) و شاخص های مربوط به مشکلات تغذیه منطقه را استخراج و نموده است؟ | C11: 2 | D11: 4 | E11: 1 | F11: 2 | G11: 2
B12: حضور درجلسه با کارشناس مسئول شهرستان هر سه ماه | C12: 1 | D12: 2 | E12: 1 | F12: 1 | G12: 1
B13: بازدید مراقبین سلامت/ بهورز هر سه ماه | C13: 1 | D13: 2 | E13: 1 | F13: 1 | G13: 1
B14: آگاهی سنجی کارشناس تغذیه از طریق آزمون (هر شش ماه یکبار) | C14: 1 | D14: 2 | E14: 1 | F14: 1 | G14: 1
B15: حضور در دوره ها و کارگاه های آموزشی در یک سال اخیر | C15: 1 | D15: 2 | E15: 1 | F15: 1 | G15: 1
B16: تولید محتوای آموزشی برای آموزش جامعه در یک سال اخیر | C16: 1 | D16: 1 | E16: 0.5 | F16: 1 | G16: 0
B17: ارسال به موقع آمار | C17: 1 | D17: 2 | E17: 1 | F17: 1 | G17: 1
B18: بازدید از مدارس (مکمل یاری) در یک سال تحصیلی اخیر | C18: 1 | D18: 2 | E18: 1 | F18: 1 | G18: 1
A19: ابزار و ملزومات ارائه خدمات تغذیه ای در اتاق کارشناس تغذیه موجود است | B19: وجود و سالم بودن ترازوی کفه ای اطفال – ترازوی بزرگسال – قدسنج اطفال و بزرگسال وزنه شاهد 0.5 و 2 و 5 کیلوگرمی – کامپیوتر ، متر نواری و ماشین حساب | C19: 10 | D19: 20 | E19: 1 | F19: 10 | G19: 10
B20: کالیبر بودن ترازوها و استاندارد بودن قدسنج ها | C20: 1 | D20: 2 | E20: 1 | F20: 1 | G20: 1
B21: موجود بودن فایل آمارهای جمعیتی و شیوع بیماریها | C21: 1 | D21: 2 | E21: 1 | F21: 1 | G21: 1
B22: بسته های آموزشی و خدمت تغذیه | C22: 1 | D22: 2 | E22: 1 | F22: 1 | G22: 1
B23: دستورالعمل های ابلاغی دفتر بهبود تغذیه جامعه | C23: 1 | D23: 2 | E23: 1 | F23: 1 | G23: 1
B24: پیگیری افراد ارجاع شده در سامانه سیب و ثبت آنها در قسمت" ثبت تماس" انجام شده است | C24: 5 | D24: 10 | E24: 1 | F24: 5 | G24: 5
B25: پیگیری و پایش تلفنی و مشاوره تغذیه برای کودکان کمتر از 5 سال حمایتی را انجام می دهد | C25: 5 | D25: 10 | E25: 1 | F25: 5 | G25: 5
A26: در سامانه سیب مراقبت یک کودک طبق بسته خدمتی چک شود | B26: اقدام | C26: 4 | D26: 8 | E26: 1 | F26: 4 | G26: 4
B27: ثبت برنامه غذایی | C27: 2 | D27: 4 | E27: 1 | F27: 2 | G27: 2
A28: در سامانه سیب مراقبت یکی از گروه های سنی جوان/میانسال/ سالمند طبق بسته خدمتی چک شود | B28: اقدام | C28: 2 | D28: 4 | E28: 1 | F28: 2 | G28: 2
B29: ثبت برنامه غذایی | C29: 2 | D29: 4 | E29: 1 | F29: 2 | G29: 2
B30: بررسی فرم مراقبت تغذیه | C30: 2 | D30: 4 | E30: 1 | F30: 2 | G30: 2
A31: در سامانه سیب مراقبت یک مادر باردار طبق بسته خدمتی چک شود | B31: اقدام | C31: 2 | D31: 4 | E31: 1 | F31: 2 | G31: 2
B32: ثبت برنامه غذایی | C32: 2 | D32: 4 | E32: 1 | F32: 2 | G32: 2
B33: بررسی فرم مراقبت تغذیه | C33: 2 | D33: 4 | E33: 1 | F33: 2 | G33: 2
A34: مشاهده نحوه مشاوره و مراقبت یکی از گروه های سنی مطابق پروتکل های ابلاغی | B34: آموزش پروتکل های مکمل یاری | C34: 2 | D34: 4 | E34: 1 | F34: 2 | G34: 2
B35: آموزش نمک یددار | C35: 2 | D35: 4 | E35: 1 | F35: 2 | G35: 2
B36: آموزش اصول تغذیه صحیح بر اساس گروه سنی فرد مراجعه کننده | C36: 2 | D36: 4 | E36: 1 | F36: 2 | G36: 2
B37: آگاهی ازوضعیت شیوع بیماری های غیرواگیر در گروه های سنی در منطقه تحت پوشش. | C37: 12 | D37: 24 | E37: 1 | F37: 12 | G37: 12
B38: نظارت بر 100 درصد پایگاه های تغذیه سالم انجام شده است | C38: 5 | D38: 10 | E38: 1 | F38: 5 | G38: 5
A39: (امتیازهای ویژه) | B39: همکاری در پژوهش مورد نیاز دفتر و معاونت بهداشتی | C39: 1 | D39: 0
B40: ابتکار در ارائه خدمات تغذیه ای در سطح منطقه - ارائه ایده های نو به معاونت/دفتر در مورد خدمات/شاخص ها و برنامه ها | C40: 1 | D40: 0
B41: انتقال انتقاد ها، مشکلات، پیشنهادات و راهکارها به کارشناس ستاد شهرستان ارائه دهنده خدمت در سال اخیر | C41: 1 | D41: 0
A42: جمع | C42: =SUM(C4:C41) -> 883 | D42: =SUM(D4:D41) -> 1953 | E42: 1.105889015 | F42: 880 | G42: 1073

Sheet %markaz
A3: فعالیت | C3: درصد حد انتظار خدمت | D3: جمع | E3: درصد | F3: فرمانفرمایان | G3: بدر
A4: سوال های عملکردی | B4: ثبت ارزیابی (مراقبت)در سامانه سیب در سه ماهه اخیر | C4: 1 | D4: =COUNTIF(F4:AE4,C4) -> 1 | E4: =D4/COUNT(F4:AE4) -> 0.5 | F4: 1 | G4: 0.8784722222
B5: ثبت آموزش فردی(اقدام) در سامانه سیب در سه ماهه اخیر | C5: 1 | D5: 2 | E5: 1 | F5: 1 | G5: 1
B6: ثبت برنامه غذایی در سامانه سیب در سه ماهه اخیر | C6: 1 | D6: 2 | E6: 1 | F6: 1 | G6: 1
B7: جلسه آموزش برون بخشی/گروهی در سه ماهه اخیر | C7: 1 | D7: 1 | E7: 0.5 | F7: 1 | G7: 0.4166666667
B8: جلسه آموزش درون بخشی درگروه در سه ماهه اخیر | C8: 1 | D8: 2 | E8: 1 | F8: 1 | G8: 1
B9: آیا برنامه عملیاتی (برنامه مداخله ای) سالیانه و جدول گانت مطابق با مشکلات شایع منطقه در ابتدای سال طراحی شده و در حال اجرا می باشد؟ | C9: 1 | D9: 2 | E9: 1 | F9: 1 | G9: 1
B10: آیا فعالیت های پیش بینی شده برنامه عملیاتی طبق جدول زمان بندی انجام گرفته است؟ | C10: 1 | D10: 2 | E10: 1 | F10: 1 | G10: 1
B11: آیا اطلاعات جمعیتی سالانه (گروه سنی و مراکز جمعی و مدارس) و شاخص های مربوط به مشکلات تغذیه منطقه را استخراج و نموده است؟ | C11: 1 | D11: 2 | E11: 1 | F11: 1 | G11: 1
B12: حضور درجلسه با کارشناس مسئول شهرستان هر سه ماه | C12: 1 | D12: 2 | E12: 1 | F12: 1 | G12: 1
B13: بازدید مراقبین سلامت/ بهورز هر سه ماه | C13: 1 | D13: 2 | E13: 1 | F13: 1 | G13: 1
B14: آگاهی سنجی کارشناس تغذیه از طریق آزمون (هر شش ماه یکبار) | C14: 1 | D14: 2 | E14: 1 | F14: 1 | G14: 1
B15: حضور در دوره ها و کارگاه های آموزشی در یک سال اخیر | C15: 1 | D15: 2 | E15: 1 | F15: 1 | G15: 1
B16: تولید محتوای آموزشی برای آموزش جامعه در یک سال اخیر | C16: 1 | D16: 1 | E16: 0.5 | F16: 1 | G16: 0
B17: ارسال به موقع آمار | C17: 1 | D17: 2 | E17: 1 | F17: 1 | G17: 1
B18: بازدید از مدارس (مکمل یاری) در یک سال تحصیلی اخیر | C18: 1 | D18: 2 | E18: 1 | F18: 1 | G18: 1
A19: ابزار و ملزومات ارائه خدمات تغذیه ای در اتاق کارشناس تغذیه موجود است | B19: وجود و سالم بودن ترازوی کفه ای اطفال – ترازوی بزرگسال – قدسنج اطفال و بزرگسال وزنه شاهد 0.5 و 2 و 5 کیلوگرمی – کامپیوتر ، متر نواری و ماشین حساب | C19: 1 | D19: 2 | E19: 1 | F19: 1 | G19: 1
B20: کالیبر بودن ترازوها و استاندارد بودن قدسنج ها | C20: 1 | D20: 2 | E20: 1 | F20: 1 | G20: 1
B21: موجود بودن فایل آمارهای جمعیتی و شیوع بیماریها | C21: 1 | D21: 2 | E21: 1 | F21: 1 | G21: 1
B22: بسته های آموزشی و خدمت تغذیه | C22: 1 | D22: 2 | E22: 1 | F22: 1 | G22: 1
B23: دستورالعمل های ابلاغی دفتر بهبود تغذیه جامعه | C23: 1 | D23: 2 | E23: 1 | F23: 1 | G23: 1
B24: پیگیری افراد ارجاع شده در سامانه سیب و ثبت آنها در قسمت" ثبت تماس" انجام شده است | C24: 1 | D24: 2 | E24: 1 | F24: 1 | G24: 1
B25: پیگیری و پایش تلفنی و مشاوره تغذیه برای کودکان کمتر از 5 سال حمایتی را انجام می دهد | C25: 1 | D25: 2 | E25: 1 | F25: 1 | G25: 1
A26: در سامانه سیب مراقبت یک کودک طبق بسته خدمتی چک شود | B26: اقدام | C26: 1 | D26: 2 | E26: 1 | F26: 1 | G26: 1
B27: ثبت برنامه غذایی | C27: 1 | D27: 2 | E27: 1 | F27: 1 | G27: 1
A28: در سامانه سیب مراقبت یکی از گروه های سنی جوان/میانسال/ سالمند طبق بسته خدمتی چک شود | B28: اقدام | C28: 1 | D28: 2 | E28: 1 | F28: 1 | G28: 1
B29: ثبت برنامه غذایی | C29: 1 | D29: 2 | E29: 1 | F29: 1 | G29: 1
B30: بررسی فرم مراقبت تغذیه | C30: 1 | D30: 2 | E30: 1 | F30: 1 | G30: 1
A31: در سامانه سیب مراقبت یک مادر باردار طبق بسته خدمتی چک شود | B31: اقدام | C31: 1 | D31: 2 | E31: 1 | F31: 1 | G31: 1
B32: ثبت برنامه غذایی | C32: 1 | D32: 2 | E32: 1 | F32: 1 | G32: 1
B33: بررسی فرم مراقبت تغذیه | C33: 1 | D33: 2 | E33: 1 | F33: 1 | G33: 1
A34: مشاهده نحوه مشاوره و مراقبت یکی از گروه های سنی مطابق پروتکل های ابلاغی | B34: آموزش پروتکل های مکمل یاری | C34: 1 | D34: 2 | E34: 1 | F34: 1 | G34: 1
B35: آموزش نمک یددار | C35: 1 | D35: 2 | E35: 1 | F35: 1 | G35: 1
B36: آموزش اصول تغذیه صحیح بر اساس گروه سنی فرد مراجعه کننده | C36: 1 | D36: 2 | E36: 1 | F36: 1 | G36: 1
B37: آگاهی ازوضعیت شیوع بیماری های غیرواگیر در گروه های سنی در منطقه تحت پوشش. | C37: 1 | D37: 2 | E37: 1 | F37: 1 | G37: 1
B38: نظارت بر 100 درصد پایگاه های تغذیه سالم انجام شده است | C38: 1 | D38: 2 | E38: 1 | F38: 1 | G38: 1
A39: (امتیازهای ویژه) | B39: همکاری در پژوهش مورد نیاز دفتر و معاونت بهداشتی | C39: 1 | D39: 0 | E39: 0 | F39: 0 | G39: 0
B40: ابتکار در ارائه خدمات تغذیه ای در سطح منطقه - ارائه ایده های نو به معاونت/دفتر در مورد خدمات/شاخص ها و برنامه ها | C40: 1 | D40: 0 | E40: 0 | F40: 0 | G40: 0
B41: انتقال انتقاد ها، مشکلات، پیشنهادات و راهکارها به کارشناس ستاد شهرستان ارائه دهنده خدمت در سال اخیر | C41: 1 | D41: 0 | E41: 0 | F41: 0 | G41: 0
A42: جمع | C42: 1 | D42: 1 | E42: 0.5 | F42: 1 | G42: 0.9635095165

Sheet گزارش
D1: نام مرکز | E1: شهرستان اسلامشهر
B2: فعالیت | C2: حدانتظار | D2: امتیاز خدمت (به ازای هر واحد از آن خدمت) | E2: تعداد خدمت کارشناس تغذیه | F2: نمره | G2: درصد رسیدن به حدانتظار خدمت | I2: فعالیت
A3: سوال های عملکردی | B3: ثبت ارزیابی (مراقبت)در سامانه سیب در سه ماهه اخیر | C3: =96*3 -> 288 | D3: 5 | E3: =HLOOKUP($E$1,'data markaz'!$D$3:$AL$42,2,0) -> 541 | F3: =IF(E3>=C3,D3,E3/C3*D3) -> 5 | G3: =IF($E$1=Sheet2!$G$5,'%markaz'!E4,F3/D3) -> 0.5 | I3: ثبت ارزیابی در سامانه سیب | J3: ü
B4: ثبت آموزش فردی(اقدام) در سامانه سیب در سه ماهه اخیر | C4: =144*3 -> 432 | D4: 6 | E4: =HLOOKUP($E$1,'data markaz'!$D$3:$AL$42,3,0) -> 1100 | F4: =IF(E4>=C4,D4,E4/C4*D4) -> 6 | G4: =IF($E$1=Sheet2!$G$5,'%markaz'!E5,F4/D4) -> 1 | I4: ثبت آموزش فردی در سامانه سیب
B5: ثبت برنامه غذایی در سامانه سیب در سه ماهه اخیر | C5: =20*3 -> 60 | D5: 10 | E5: =HLOOKUP($E$1,'data markaz'!$D$3:$AL$42,4,0) -> 120 | F5: 10 | G5: =IF($E$1=Sheet2!$G$5,'%markaz'!E6,F5/D5) -> 1 | I5: ثبت برنامه غذایی در سامانه سیب
B6: جلسه آموزش برون بخشی/گروهی در سه ماهه اخیر | C6: =4*3 -> 12 | D6: 4 | E6: =HLOOKUP($E$1,'data markaz'!$D$3:$AL$42,5,0) -> 17 | F6: 4 | G6: =IF($E$1=Sheet2!$G$5,'%markaz'!E7,F6/D6) -> 0.5 | I6: برگزاری جلسه آموزش برون بخشی
B7: جلسه آموزش درون بخشی درگروه در سه ماهه اخیر | C7: =4*3 -> 12 | D7: 4 | E7: =HLOOKUP($E$1,'data markaz'!$D$3:$AL$42,6,0) -> 24 | F7: 4 | G7: =IF($E$1=Sheet2!$G$5,'%markaz'!E8,F7/D7) -> 1 | I7: برگزاری جلسه آموزش درون بخشی
B8: آیا برنامه عملیاتی (برنامه مداخله ای) سالیانه و جدول گانت مطابق با مشکلات شایع منطقه در ابتدای سال طراحی شده و در حال اجرا می باشد؟ | C8: 1 | D8: 5 | E8: =HLOOKUP($E$1,'data markaz'!$D$3:$AL$42,7,0) -> 2 | F8: 5 | G8: =IF($E$1=Sheet2!$G$5,'%markaz'!E9,F8/D8) -> 1 | I8: طراحی برنامه عملیاتی سالیانه | J8: ü
B9: آیا فعالیت های پیش بینی شده برنامه عملیاتی طبق جدول زمان بندی انجام گرفته است؟ | C9: 1 | D9: 2 | E9: =HLOOKUP($E$1,'data markaz'!$D$3:$AL$42,8,0) -> 2 | F9: 2 | G9: =IF($E$1=Sheet2!$G$5,'%markaz'!E10,F9/D9) -> 1 | I9: انجام فعالیت های پیش بینی شده برنامه عملیاتی طبق برنامه
B10: آیا اطلاعات جمعیتی سالانه (گروه سنی و مراکز جمعی و مدارس) و شاخص های مربوط به مشکلات تغذیه منطقه را استخراج و نموده است؟ | C10: 2 | D10: 3 | E10: =HLOOKUP($E$1,'data markaz'!$D$3:$AL$42,9,0) -> 4 | F10: 3 | G10: =IF($E$1=Sheet2!$G$5,'%markaz'!E11,F10/D10) -> 1 | I10: استخراج اطلاعات جمعیتی و شاخص های مربوطه | J10: ü
B11: حضور درجلسه با کارشناس مسئول شهرستان هر سه ماه | C11: 1 | D11: 2 | E11: =HLOOKUP($E$1,'data markaz'!$D$3:$AL$42,10,0) -> 2 | F11: 2 | G11: =IF($E$1=Sheet2!$G$5,'%markaz'!E12,F11/D11) -> 1 | I11: حضور درجلسه شهرستان
B12: بازدید مراقبین سلامت/ بهورز هر سه ماه | C12: 1 | D12: 2 | E12: =HLOOKUP($E$1,'data markaz'!$D$3:$AL$42,11,0) -> 2 | F12: 2 | G12: =IF($E$1=Sheet2!$G$5,'%markaz'!E13,F12/D12) -> 1 | I12: بازدید از برنامه های تغذیه مراقبین سلامت
B13: آگاهی سنجی کارشناس تغذیه از طریق آزمون (هر شش ماه یکبار) | C13: 1 | D13: 2 | E13: =HLOOKUP($E$1,'data markaz'!$D$3:$AL$42,12,0) -> 2 | F13: 2 | G13: =IF($E$1=Sheet2!$G$5,'%markaz'!E14,F13/D13) -> 1 | I13: آگاهی از بسته های آموزشی تغذیه از طریق آزمون
B14: حضور در دوره ها و کارگاه های آموزشی در یک سال اخیر | C14: 1 | D14: 2 | E14: =HLOOKUP($E$1,'data markaz'!$D$3:$AL$42,13,0) -> 2 | F14: 2 | G14: =IF($E$1=Sheet2!$G$5,'%markaz'!E15,F14/D14) -> 1 | I14: حضور در دوره ها و کارگاه های آموزشی
B15: تولید محتوای آموزشی برای آموزش جامعه در یک سال اخیر | C15: 1 | D15: 1 | E15: =HLOOKUP($E$1,'data markaz'!$D$3:$AL$42,14,0) -> 1 | F15: 1 | G15: =IF($E$1=Sheet2!$G$5,'%markaz'!E16,F15/D15) -> 0.5 | I15: تولید محتوای آموزشی برای آموزش جامعه
B16: ارسال به موقع آمار | C16: 1 | D16: 2 | E16: =HLOOKUP($E$1,'data markaz'!$D$3:$AL$42,15,0) -> 2 | F16: 2 | G16: =IF($E$1=Sheet2!$G$5,'%markaz'!E17,F16/D16) -> 1 | I16: ارسال به موقع آمار
B17: بازدید از مدارس (مکمل یاری) در یک سال تحصیلی اخیر | C17: 1 | D17: 4 | E17: =HLOOKUP($E$1,'data markaz'!$D$3:$AL$42,16,0) -> 2 | F17: 4 | G17: =IF($E$1=Sheet2!$G$5,'%markaz'!E18,F17/D17) -> 1 | I17: بازدید از برنامه مکمل یاری مدارس
A18: ابزار و ملزومات ارائه خدمات تغذیه ای در اتاق کارشناس تغذیه موجود است | B18: وجود و سالم بودن ترازوی کفه ای اطفال – ترازوی بزرگسال – قدسنج اطفال و بزرگسال وزنه شاهد 0.5 و 2 و 5 کیلوگرمی – کامپیوتر ، متر نواری و ماشین حساب | C18: 10 | D18: 1 | E18: =HLOOKUP($E$1,'data markaz'!$D$3:$AL$42,17,0) -> 20 | F18: 1 | G18: =IF($E$1=Sheet2!$G$5,'%markaz'!E19,F18/D18) -> 1 | I18: وجود و سالم بودن تجهیزات | J18: ü
B19: کالیبر بودن ترازوها و استاندارد بودن قدسنج ها | C19: 1 | D19: 1 | E19: =HLOOKUP($E$1,'data markaz'!$D$3:$AL$42,18,0) -> 2 | F19: 1 | G19: =IF($E$1=Sheet2!$G$5,'%markaz'!E20,F19/D19) -> 1 | I19: کالیبر بودن ترازوها و استاندارد بودن قدسنج ها
B20: موجود بودن فایل آمارهای جمعیتی و شیوع بیماریها | C20: 1 | D20: 1 | E20: =HLOOKUP($E$1,'data markaz'!$D$3:$AL$42,19,0) -> 2 | F20: 1 | G20: =IF($E$1=Sheet2!$G$5,'%markaz'!E21,F20/D20) -> 1 | I20: وجود فایل آمارهای جمعیتی و شیوع بیماریها
B21: بسته های آموزشی و خدمت تغذیه | C21: 1 | D21: 1 | E21: =HLOOKUP($E$1,'data markaz'!$D$3:$AL$42,20,0) -> 2 | F21: 1 | G21: =IF($E$1=Sheet2!$G$5,'%markaz'!E22,F21/D21) -> 1 | I21: وجود بسته های آموزشی و خدمت تغذیه
B22: دستورالعمل های ابلاغی دفتر بهبود تغذیه جامعه | C22: 1 | D22: 1 | E22: =HLOOKUP($E$1,'data markaz'!$D$3:$AL$42,21,0) -> 2 | F22: 1 | G22: =IF($E$1=Sheet2!$G$5,'%markaz'!E23,F22/D22) -> 1 | I22: وجود دستورالعمل های ابلاغی دفتر بهبود تغذیه جامعه
B23: پیگیری افراد ارجاع شده در سامانه سیب و ثبت آنها در قسمت" ثبت تماس" انجام شده است | C23: 5 | D23: 5 | E23: =HLOOKUP($E$1,'data markaz'!$D$3:$AL$42,22,0) -> 10 | F23: 5 | G23: =IF($E$1=Sheet2!$G$5,'%markaz'!E24,F23/D23) -> 1 | I23: پیگیری افراد ارجاع شده و ثبت آنها در قسمت" ثبت تماس"
B24: پیگیری و پایش تلفنی و مشاوره تغذیه برای کودکان کمتر از 5 سال حمایتی را انجام می دهد | C24: 5 | D24: 5 | E24: =HLOOKUP($E$1,'data markaz'!$D$3:$AL$42,23,0) -> 10 | F24: 5 | G24: =IF($E$1=Sheet2!$G$5,'%markaz'!E25,F24/D24) -> 1 | I24: پیگیری و پایش تلفنی و مشاوره تغذیه برای کودکان کمتر از 5 سال حمایتی
A25: در سامانه سیب مراقبت یک کودک طبق بسته خدمتی چک شود | B25: اقدام | C25: 4 | D25: 2 | E25: =HLOOKUP($E$1,'data markaz'!$D$3:$AL$42,24,0) -> 8 | F25: 2 | G25: =IF($E$1=Sheet2!$G$5,'%markaz'!E26,F25/D25) -> 1 | I25: اقدام | J25: ü
B26: ثبت برنامه غذایی | C26: 2 | D26: 2 | E26: =HLOOKUP($E$1,'data markaz'!$D$3:$AL$42,25,0) -> 4 | F26: 2 | G26: =IF($E$1=Sheet2!$G$5,'%markaz'!E27,F26/D26) -> 1 | I26: ثبت برنامه غذایی
A27: در سامانه سیب مراقبت یکی از گروه های سنی جوان/میانسال/ سالمند طبق بسته خدمتی چک شود | B27: اقدام | C27: 2 | D27: 2 | E27: =HLOOKUP($E$1,'data markaz'!$D$3:$AL$42,26,0) -> 4 | F27: 2 | G27: =IF($E$1=Sheet2!$G$5,'%markaz'!E28,F27/D27) -> 1 | I27: اقدام
B28: ثبت برنامه غذایی | C28: 2 | D28: 2 | E28: =HLOOKUP($E$1,'data markaz'!$D$3:$AL$42,27,0) -> 4 | F28: 2 | G28: =IF($E$1=Sheet2!$G$5,'%markaz'!E29,F28/D28) -> 1 | I28: ثبت برنامه غذایی
B29: بررسی فرم مراقبت تغذیه | C29: 2 | D29: 2 | E29: =HLOOKUP($E$1,'data markaz'!$D$3:$AL$42,28,0) -> 4 | F29: 2 | G29: =IF($E$1=Sheet2!$G$5,'%markaz'!E30,F29/D29) -> 1 | I29: بررسی فرم مراقبت تغذیه
A30: در سامانه سیب مراقبت یک مادر باردار طبق بسته خدمتی چک شود | B30: اقدام | C30: 2 | D30: 2 | E30: =HLOOKUP($E$1,'data markaz'!$D$3:$AL$42,29,0) -> 4 | F30: 2 | G30: =IF($E$1=Sheet2!$G$5,'%markaz'!E31,F30/D30) -> 1 | I30: اقدام
B31: ثبت برنامه غذایی | C31: 2 | D31: 2 | E31: =HLOOKUP($E$1,'data markaz'!$D$3:$AL$42,30,0) -> 4 | F31: 2 | G31: =IF($E$1=Sheet2!$G$5,'%markaz'!E32,F31/D31) -> 1 | I31: ثبت برنامه غذایی
B32: بررسی فرم مراقبت تغذیه | C32: 2 | D32: 2 | E32: =HLOOKUP($E$1,'data markaz'!$D$3:$AL$42,31,0) -> 4 | F32: 2 | G32: =IF($E$1=Sheet2!$G$5,'%markaz'!E33,F32/D32) -> 1 | I32: بررسی فرم مراقبت تغذیه
A33: مشاهده نحوه مشاوره و مراقبت یکی از گروه های سنی مطابق پروتکل های ابلاغی | B33: آموزش پروتکل های مکمل یاری | C33: 2 | D33: 2 | E33: =HLOOKUP($E$1,'data markaz'!$D$3:$AL$42,32,0) -> 4 | F33: 2 | G33: =IF($E$1=Sheet2!$G$5,'%markaz'!E34,F33/D33) -> 1 | I33: آموزش پروتکل های مکمل یاری | J33: ü
B34: آموزش نمک یددار | C34: 2 | D34: 2 | E34: =HLOOKUP($E$1,'data markaz'!$D$3:$AL$42,33,0) -> 4 | F34: 2 | G34: =IF($E$1=Sheet2!$G$5,'%markaz'!E35,F34/D34) -> 1 | I34: آموزش نمک یددار
B35: آموزش اصول تغذیه صحیح بر اساس گروه سنی فرد مراجعه کننده | C35: 2 | D35: 2 | E35: =HLOOKUP($E$1,'data markaz'!$D$3:$AL$42,34,0) -> 4 | F35: 2 | G35: =IF($E$1=Sheet2!$G$5,'%markaz'!E36,F35/D35) -> 1 | I35: آموزش اصول تغذیه صحیح بر اساس گروه سنی فرد مراجعه کننده
B36: آگاهی ازوضعیت شیوع بیماری های غیرواگیر در گروه های سنی در منطقه تحت پوشش. | C36: 12 | D36: 12 | E36: =HLOOKUP($E$1,'data markaz'!$D$3:$AL$42,35,0) -> 24 | F36: 12 | G36: =IF($E$1=Sheet2!$G$5,'%markaz'!E37,F36/D36) -> 1 | I36: آگاهی ازوضعیت شیوع بیماری های غیرواگیر در گروه های سنی در منطقه تحت پوشش.
B37: نظارت بر 100 درصد پایگاه های تغذیه سالم انجام شده است | C37: 5 | D37: 5 | E37: =HLOOKUP($E$1,'data markaz'!$D$3:$AL$42,36,0) -> 10 | F37: 5 | G37: =IF($E$1=Sheet2!$G$5,'%markaz'!E38,F37/D37) -> 1 | I37: نظارت بر 100 درصد پایگاه های تغذیه سالم مدارس
A38: (امتیازهای ویژه) | B38: همکاری در پژوهش مورد نیاز دفتر و معاونت بهداشتی | C38: 1 | D38: 1 | E38: =HLOOKUP($E$1,'data markaz'!$D$3:$AL$42,37,0) -> 0 | F38: 0 | G38: =IF($E$1=Sheet2!$G$5,'%markaz'!E39,F38/D38) -> 0 | I38: همکاری در پژوهش دفتر و معاونت بهداشتی
B39: ابتکار در ارائه خدمات تغذیه ای در سطح منطقه - ارائه ایده های نو به معاونت/دفتر در مورد خدمات/شاخص ها و برنامه ها | C39: 1 | D39: 1 | E39: =HLOOKUP($E$1,'data markaz'!$D$3:$AL$42,38,0) -> 0 | F39: 0 | G39: =IF($E$1=Sheet2!$G$5,'%markaz'!E40,F39/D39) -> 0 | I39: ابتکار در ارائه خدمات تغذیه ای
B40: انتقال انتقاد ها، مشکلات، پیشنهادات و راهکارها به کارشناس ستاد شهرستان ارائه دهنده خدمت در سال اخیر | C40: 1 | D40: 1 | E40: =HLOOKUP($E$1,'data markaz'!$D$3:$AL$42,39,0) -> 0 | F40: 0 | G40: =IF($E$1=Sheet2!$G$5,'%markaz'!E41,F40/D40) -> 0 | I40: ارائه نظرات سازنده به ستاد شهرستان
A41: جمع | C41: =SUM(C3:C40) -> 883 | D41: =SUM(D3:D40) -> 111 | E41: =SUM(E3:E40) -> 1953 | F41: =SUM(F3:F40) -> 108 | G41: =IF($E$1=Sheet2!$G$5,'%markaz'!E42,F41/D41) -> 0.5
